bitfinex/quotes_ETHUSD_20251107
["timestamp","ask_amount","ask_price","bid_price","bid_amount"]
[1762517350997,3.46650984,3266.9,3266.8,0.002176]
[1762517351177,1.665216,3266.9,3266.8,1.696476]
[1762517351378,0.405504,3266.9,3266.8,2.183076]
[1762517351811,0.405504,3266.9,3266.8,1.696476]
[1762517352622,0.405504,3266.9,3266.8,2.926476]
[1762517353048,0.405504,3266.9,3266.8,3.413076]
[1762517353608,0.405504,3266.9,3266.8,2.926476]
[1762517353913,0.405504,3266.9,3266.8,4.156476]
[1762517355255,0.405504,3266.9,3266.8,3.692176]
[1762517355554,0.405504,3266.9,3266.8,4.922176]
[1762517355555,5.85182184,3266.9,3266.8,4.922176]
[1762517355768,6.25083692,3266.9,3266.8,4.922176]
[1762517355963,5.38042184,3266.9,3266.8,4.922176]
[1762517356365,1.863016,3266.9,3266.8,4.922176]
[1762517356571,4.72622184,3266.9,3266.8,4.922176]
[1762517356733,1.665216,3266.9,3266.8,6.639876]
[1762517356921,4.72622184,3266.9,3266.8,6.152176]
[1762517358119,4.72542184,3266.9,3266.8,7.382176]
[1762517358717,5.18182184,3266.9,3266.8,7.382176]
[1762517358919,6.47414579,3266.9,3266.8,7.382176]
[1762517359134,6.05223692,3266.9,3266.8,7.382176]
[1762517359339,5.58083692,3266.9,3266.8,7.382176]
[1762517359534,5.58083692,3266.9,3266.8,8.612176]
[1762517359941,6.05223692,3266.9,3266.8,8.612176]
[1762517360439,1.664416,3266.9,3266.8,8.612176]
[1762517360635,1.259712,3266.9,3266.8,9.099876]
[1762517360876,1.259712,3266.9,3266.8,10.8245799]
[1762517361079,1.665216,3266.9,3266.8,10.8245799]
[1762517361440,0.1978,3267.7,3266.8,11.2922799]
[1762517361640,0.1822,3268.6,3267.6,0.18587032]
[1762517361641,3.05950741,3268.5,3267.6,0.18587032]
[1762517361846,3.05976439,3268.3,3267.6,0.18587032]
[1762517362041,0.6536,3268.6,3267.6,0.18587032]
[1762517362042,0.405504,3268.0,3267.6,0.18587032]
[1762517362280,3.71445644,3267.7,3267.6,1.23]
[1762517362587,5.37967244,3267.7,3267.6,1.23]
[1762517362744,5.85107244,3267.7,3267.6,1.23]
[1762517363458,6.73048796,3267.7,3267.6,1.23]
[1762517363658,6.73048796,3267.7,3267.6,2.46]
[1762517364256,2.79981644,3267.7,3267.6,2.46]
[1762517364455,2.79981644,3267.7,3267.6,2.8442]
[1762517364456,0.48040044,3267.7,3267.6,2.8442]
[1762517364669,0.48040044,3267.7,3267.6,2.9824]
[1762517365158,0.48040044,3267.7,3267.6,3.69]
[1762517365756,0.48040044,3267.7,3267.6,3.8282]
[1762517365949,0.88790444,3267.7,3267.6,3.8282]
[1762517366484,0.48240044,3267.7,3267.6,5.1964]
[1762517366710,0.002,3267.7,3267.6,5.1964]
[1762517366909,0.002,3267.7,3267.6,5.71614]
[1762517367408,1.59660112,3268.4,3267.6,5.71614]
[1762517367409,0.002,3268.4,3267.6,5.71614]
[1762517367715,0.002,3268.4,3268.0,0.1382]
[1762517368078,0.405504,3268.2,3268.0,0.1382]
[1762517368518,0.407504,3268.4,3268.1,0.1382]
[1762517368883,1.667216,3268.4,3268.1,0.1382]
[1762517369098,0.407504,3268.4,3268.1,0.1382]
[1762517369311,1.667216,3268.4,3268.1,1.3682]
[1762517369610,4.72690978,3268.4,3268.1,1.3682]
[1762517369811,4.72690978,3268.4,3268.1,1.23]
[1762517369812,3.92169226,3268.2,3268.1,1.23]
[1762517370010,5.18140426,3268.2,3268.1,1.23]
[1762517370213,6.05181934,3268.2,3268.1,1.23]
[1762517370615,6.05181934,3268.2,3268.1,2.46]
[1762517371487,4.72500426,3268.2,3268.1,2.46]
[1762517371687,5.18140426,3268.2,3268.1,2.46]
[1762517371886,5.65280426,3268.2,3268.1,3.69]
[1762517372087,5.18140426,3268.2,3268.1,3.69]
[1762517372317,1.665216,3268.2,3268.1,3.69]
[1762517372483,5.18140426,3268.2,3268.1,3.69]
[1762517372814,1.259712,3268.2,3268.1,3.8282]
[1762517373008,1.665216,3268.2,3268.1,3.8282]
[1762517373518,0.405504,3268.2,3268.1,5.0582]
[1762517374134,1.665216,3268.2,3268.1,4.92]
[1762517374340,5.65280426,3268.2,3268.1,4.92]
[1762517374550,6.05181934,3268.2,3268.1,4.92]
[1762517374841,5.65280426,3268.2,3268.1,6.15]
[1762517375611,6.05181934,3268.2,3268.1,6.15]
[1762517375921,5.65280426,3268.2,3268.1,6.15]
[1762517376121,5.65280426,3268.2,3268.1,7.38]
[1762517376323,5.18140426,3268.2,3268.1,7.38]
[1762517377251,4.72500426,3268.2,3268.1,7.38]
[1762517377454,4.82500425,3268.2,3268.1,8.61]
[1762517378841,4.82500425,3268.2,3268.1,9.84]
[1762517379044,5.28140425,3268.2,3268.1,9.84]
[1762517379250,5.75280425,3268.2,3268.1,9.84]
[1762517380249,4.82500425,3268.2,3268.1,9.84]
[1762517380464,4.82500425,3268.2,3268.1,11.07]
[1762517380678,5.77180425,3268.2,3268.1,11.07]
[1762517380952,4.82420425,3268.2,3268.1,11.07]
[1762517381741,1.76441599,3268.2,3268.1,11.07]
[1762517381946,1.76441599,3268.2,3268.1,12.3]
[1762517382559,4.82420425,3268.2,3268.1,12.3]
[1762517382961,1.76441599,3268.2,3268.1,12.3]
[1762517383447,2.2447339,3268.2,3268.1,13.53]
[1762517383797,2.2467339,3268.2,3268.1,13.53]
[1762517384081,2.2467339,3268.2,3268.1,13.6682]
[1762517384782,0.9870219,3268.2,3268.1,14.8982]
[1762517384984,2.2467339,3268.2,3268.1,14.8982]
[1762517386264,2.2467339,3268.2,3268.1,16.1282]
[1762517387554,2.2467339,3268.2,3268.1,17.3582]
[1762517388257,0.9870219,3268.2,3268.1,17.3582]
[1762517389069,0.9870219,3268.2,3268.1,18.5882]
[1762517389482,0.9870219,3268.2,3268.1,18.45]
[1762517389656,2.2467339,3268.2,3268.1,18.45]
[1762517390693,6.26962216,3268.2,3268.1,18.45]
[1762517390895,6.66863724,3268.2,3268.1,19.68]
[1762517391192,10.44135955,3268.2,3268.1,19.68]
[1762517392081,10.44135955,3268.2,3268.1,20.91]
[1762517392284,10.86326842,3268.2,3268.1,20.91]
[1762517392459,10.44135955,3268.2,3268.1,20.91]
[1762517393168,10.86326842,3268.2,3268.1,20.91]
[1762517393491,10.86326842,3268.2,3268.1,21.74]
[1762517394205,10.86326842,3268.2,3268.1,1e-08]
[1762517394206,11.3303644,3268.2,3268.1,1e-08]
[1762517394385,11.3303644,3268.2,3267.6,6.151]
[1762517394386,4.82547243,3267.7,3267.6,6.151]
[1762517394589,5.47877243,3267.7,3267.6,6.151]
[1762517394775,6.39345418,3267.7,3267.6,6.151]
[1762517394956,7.29581633,3267.7,3267.6,5.951]
[1762517395161,6.87390746,3267.7,3267.6,5.951]
[1762517395561,7.29581633,3267.7,3267.6,0.199151]
[1762517395813,6.39345418,3267.7,3267.6,0.199151]
[1762517396308,6.39345418,3267.7,3267.6,1.429151]
[1762517397314,4.03639095,3266.6,3266.5,2.461]
[1762517397461,0.09999999,3264.9,3264.8,7.455541]
[1762517398892,0.58067768,3264.9,3264.8,8.685541]
[1762517399358,0.48067769,3264.9,3264.8,8.685541]
[1762517399557,0.09999999,3265.2,3264.8,8.685541]
[1762517399795,0.1837,3266.5,3264.8,8.685541]
[1762517399995,0.405504,3266.1,3264.9,0.8685541]
[1762517400296,0.09999999,3265.3,3264.9,0.8685541]
[1762517400468,0.09999999,3265.4,3264.9,2.0985541]
[1762517400790,0.09999999,3265.7,3264.9,2.0985541]
[1762517401200,0.09999999,3265.2,3264.9,2.0985541]
[1762517401400,0.09999999,3265.2,3265.0,1.07840951]
[1762517401893,0.09999999,3265.2,3265.0,2.30840951]
[1762517402069,0.09999999,3265.4,3265.0,2.30840951]
[1762517402472,0.09999999,3265.2,3265.0,2.30840951]
[1762517402877,0.09999999,3265.5,3265.0,2.30840951]
[1762517403072,0.63829128,3266.3,3265.1,0.35394095]
[1762517403073,0.09999999,3265.8,3265.1,0.35394095]
[1762517403795,0.09919999,3265.8,3265.1,0.35394095]
[1762517404339,0.00087367,3265.7,3265.1,0.35394095]
[1762517404508,0.09919999,3265.5,3265.1,0.35394095]
[1762517404668,0.09919999,3265.5,3265.1,1.58394095]
[1762517404860,0.00087367,3265.7,3265.2,0.51223505]
[1762517404861,0.09919999,3265.3,3265.2,0.51223505]
[1762517406179,0.09919999,3265.3,3265.2,1.74223505]
[1762517406768,0.09919999,3265.3,3265.2,1.74136138]
[1762517407504,0.09919999,3265.3,3265.2,2.97136138]
[1762517407809,0.09919999,3265.8,3265.2,2.97136138]
[1762517407968,0.09919999,3265.5,3265.3,0.45553023]
[1762517408183,0.09919999,3266.1,3265.3,0.45553023]
[1762517408421,0.09919999,3265.9,3265.3,0.45553023]
[1762517409119,0.48064288,3266.3,3265.3,1.68553023]
[1762517409283,0.57984287,3266.3,3265.4,0.46568916]
[1762517409482,0.09919999,3266.1,3265.4,0.46568916]
[1762517409706,0.57984287,3266.3,3265.4,0.46568916]
[1762517409984,0.48064288,3266.3,3265.4,0.46568916]
[1762517410195,0.48064288,3266.3,3265.4,1.69568916]
[1762517410494,0.48064288,3266.3,3265.5,0.33812194]
[1762517411078,0.57984287,3266.3,3265.5,0.33812194]
[1762517411616,3.5536734,3267.8,3265.5,0.33812194]
[1762517411858,0.6772,3267.7,3265.5,1.56812194]
[1762517412320,0.09919999,3267.0,3265.5,1.56812194]
[1762517412518,0.09919999,3267.1,3265.6,0.63262118]
[1762517412816,0.09919999,3267.2,3265.6,0.63262118]
[1762517412997,0.09919999,3267.0,3265.6,0.63262118]
[1762517413192,0.09919999,3267.0,3265.6,1.86262118]
[1762517413417,0.09919999,3266.7,3265.6,1.86262118]
[1762517413582,0.09919999,3266.7,3265.7,0.34307431]
[1762517414477,1.259712,3267.5,3265.7,0.34307431]
[1762517414478,0.09919999,3266.5,3265.7,0.34307431]
[1762517414702,0.09919999,3266.5,3265.7,1.57307431]
[1762517415101,0.48047244,3266.6,3265.7,1.57307431]
[1762517415985,0.48047244,3266.6,3265.7,2.80307431]
[1762517416187,0.48047244,3266.6,3265.8,0.70952488]
[1762517417125,0.09919999,3266.5,3265.8,0.70952488]
[1762517417338,0.09919999,3266.3,3265.8,1.23]
[1762517417835,0.09919999,3265.9,3265.8,1.23]
[1762517418824,0.09919999,3265.9,3265.8,2.46]
[1762517420122,0.09919999,3265.9,3265.8,3.69]
[1762517421419,0.09919999,3265.9,3265.8,4.92]
[1762517421420,0.59829999,3265.9,3265.8,4.92]
[1762517421642,0.09919999,3265.9,3265.8,5.781]
[1762517421934,0.405504,3266.5,3265.8,5.781]
[1762517422234,0.09919999,3265.9,3265.8,5.781]
[1762517422524,0.09919999,3266.1,3265.8,4.92]
[1762517422721,0.405504,3266.5,3265.8,6.15]
[1762517423270,0.59829999,3265.9,3265.8,6.15]
[1762517423725,0.09919999,3265.9,3265.8,6.15]
[1762517423889,0.405504,3266.5,3265.8,6.15]
[1762517424083,0.405504,3266.5,3265.8,7.38]
[1762517424290,0.405504,3266.5,3265.8,8.487]
[1762517424690,0.09919999,3266.2,3265.8,8.487]
[1762517424893,0.09919999,3266.0,3265.8,8.487]
[1762517425593,0.09919999,3266.0,3265.8,9.717]
[1762517426310,0.48053467,3266.0,3265.8,9.717]
[1762517426491,0.48053467,3266.0,3265.9,1.2177]
[1762517426815,0.57893466,3266.0,3265.9,1.2177]
[1762517428522,0.47973467,3266.0,3265.9,2.4477]
[1762517428703,0.57893466,3266.0,3265.9,2.4477]
[1762517429304,0.57893466,3266.0,3265.9,1.23]
[1762517429508,1.07803466,3266.0,3265.9,1.23]
[1762517429696,1.55223466,3266.0,3265.9,1.23]
[1762517429898,1.55223466,3266.0,3265.9,2.46]
[1762517431119,0.57893466,3266.0,3265.9,2.46]
[1762517431415,0.47973467,3266.0,3265.9,5.166]
[1762517431620,0.57893466,3266.0,3265.9,5.166]
[1762517432440,0.47973467,3266.0,3265.9,5.166]
[1762517432605,0.47973467,3266.0,3265.9,6.396]
[1762517433037,0.57893466,3266.0,3265.9,6.396]
[1762517434040,0.57893466,3266.0,3265.9,7.626]
[1762517434621,0.57893466,3266.0,3265.9,6.15]
[1762517435461,0.57893466,3266.0,3265.9,7.38]
[1762517435617,0.47973467,3266.0,3265.9,7.38]
[1762517435824,0.57893466,3266.0,3265.9,7.38]
[1762517436026,1.07803466,3266.0,3265.9,7.38]
[1762517436225,0.57893466,3266.0,3265.9,7.38]
[1762517436426,0.57893466,3266.0,3265.9,9.348]
[1762517436656,0.57893466,3266.0,3265.9,8.61]
[1762517437337,1.07249999,3266.0,3265.9,8.61]
[1762517438115,1.07249999,3266.0,3265.9,9.84]
[1762517438518,1.07449999,3266.0,3265.9,9.84]
[1762517439666,1.07449999,3266.0,3265.9,11.07]
[1762517440566,0.5011,3266.0,3265.9,11.07]
[1762517440854,0.5011,3266.0,3265.9,12.3]
[1762517441059,0.60029999,3266.0,3265.9,12.3]
[1762517441360,1.07259999,3266.0,3265.9,12.3]
[1762517442276,1.07259999,3266.0,3265.9,13.53]
[1762517443736,1.07259999,3266.0,3265.9,14.76]
[1762517443935,0.5011,3266.0,3265.9,14.76]
[1762517444536,1.06879999,3266.0,3265.9,14.76]
[1762517445174,1.06879999,3266.0,3265.9,15.99]
[1762517446558,1.06879999,3266.0,3265.9,17.22]
[1762517446759,0.10119999,3266.0,3265.9,17.22]
[1762517446955,0.57729999,3266.0,3265.9,17.22]
[1762517447581,1.04579999,3266.0,3265.9,17.22]
[1762517447980,1.04579999,3266.0,3265.9,18.45]
[1762517448788,1.45130399,3266.0,3265.9,18.45]
[1762517448960,2.71101599,3266.0,3265.9,18.45]
[1762517449395,2.71021599,3266.0,3265.9,18.45]
[1762517449695,2.71021599,3266.0,3265.9,19.68]
[1762517449894,3.13139774,3266.0,3265.9,19.68]
[1762517450110,2.71021599,3266.0,3265.9,19.68]
[1762517450792,3.63110403,3266.0,3265.9,19.68]
[1762517450972,3.63110403,3266.0,3265.9,20.91]
[1762517451167,4.05228578,3266.0,3265.9,20.91]
[1762517451494,3.63110403,3266.0,3265.9,20.91]
[1762517451665,4.05228578,3266.0,3265.9,20.91]
[1762517451865,3.63110403,3266.0,3265.9,20.91]
[1762517452284,3.63110403,3266.0,3265.9,22.14]
[1762517452487,6.69295338,3266.0,3265.9,22.14]
[1762517452690,7.11413513,3266.0,3265.9,21.64]
[1762517452865,7.90329759,3266.0,3265.9,6.83158019]
[1762517453068,3.63110403,3266.0,3265.9,6.83158019]
[1762517453266,6.69295338,3266.0,3265.9,6.83158019]
[1762517453494,6.69295338,3266.0,3265.9,8.06158019]
[1762517453963,7.06554346,3266.0,3265.9,8.06158019]
[1762517454498,6.69295338,3266.0,3265.9,8.06158019]
[1762517455098,6.59375339,3266.0,3265.9,9.29158019]
[1762517455713,6.69295338,3266.0,3265.9,9.29158019]
[1762517456272,3.63110403,3266.0,3265.9,9.29158019]
[1762517456606,1.02128803,3266.0,3265.9,10.52158019]
[1762517456803,1.02128803,3266.0,3265.9,13.78373821]
[1762517456804,0.10039999,3266.0,3265.9,13.78373821]
[1762517457163,0.10039999,3266.0,3265.9,13.78473821]
[1762517457808,0.10039999,3266.0,3265.9,15.01473821]
[1762517459122,0.10039999,3266.0,3265.9,13.46638019]
[1762517459405,0.10039999,3266.0,3265.9,12.98258019]
[1762517459969,0.57179999,3266.0,3265.9,12.98258019]
[1762517460417,0.97730399,3266.0,3265.9,12.98258019]
[1762517460615,0.97730399,3266.0,3265.1,1.231]
[1762517460616,5.76736534,3266.0,3265.1,1.231]
[1762517460800,3.06231817,3265.5,3263.5,0.1809]
[1762517461024,3.06231817,3265.5,3263.6,4.92]
[1762517461210,0.0047,3265.7,3261.5,1.3902852]
[1762517461211,0.09919999,3262.5,3262.4,1.00520759]
[1762517461412,1.03764591,3262.6,3262.4,1.00520759]
[1762517461739,0.4679,3263.6,3262.4,1.00520759]
[1762517461740,0.09919999,3262.7,3262.5,0.4739]
[1762517461940,0.4685,3263.7,3262.5,0.4739]
[1762517461941,0.92154998,3262.8,3262.6,0.4739]
[1762517462136,0.09919999,3262.7,3262.6,0.4739]
[1762517462302,0.09919999,3262.7,3262.4,2.08972835]
[1762517462502,0.09919999,3262.7,3262.6,0.4739]
[1762517462738,0.92154998,3262.7,3262.6,0.4739]
[1762517463034,0.09919999,3263.8,3262.6,0.9478]
[1762517463241,0.09919999,3263.8,3262.4,1.00520759]
[1762517463242,0.92142544,3263.6,3262.4,1.00520759]
[1762517463540,0.09919999,3262.5,3262.4,1.00520759]
[1762517463831,0.09919999,3262.5,3262.4,2.10279835]
[1762517464032,0.09919999,3262.5,3262.4,2.57669835]
[1762517464443,0.09919999,3262.5,3262.4,2.10279835]
[1762517466433,0.09919999,3262.5,3262.4,1.00520759]
[1762517466626,0.09919999,3262.5,3262.4,2.23520759]
[1762517467370,1.86738794,3262.5,3262.4,2.23520759]
[1762517467531,0.98578394,3262.5,3262.4,2.23520759]
[1762517468028,0.98578394,3262.5,3262.4,3.46520759]
[1762517468225,0.50470399,3262.5,3262.4,3.46520759]
[1762517469467,0.50470399,3262.5,3262.4,4.69520759]
[1762517469843,1.85480799,3262.5,3262.4,4.69520759]
[1762517470468,6.17965408,3262.5,3262.4,4.69520759]
[1762517470670,2.64601999,3262.5,3262.4,4.69520759]
[1762517470963,2.64601999,3262.5,3262.4,5.92520759]
[1762517471139,3.12716496,3262.5,3262.4,5.92520759]
[1762517471765,2.65106496,3262.5,3262.4,5.92520759]
[1762517472147,2.65026496,3262.5,3262.4,7.15520759]
[1762517472350,3.59486496,3262.5,3262.4,7.15520759]
[1762517473347,3.59486496,3262.5,3262.4,8.38520759]
[1762517474160,6.65999905,3262.5,3262.4,8.38520759]
[1762517474562,3.59486496,3262.5,3262.4,8.38520759]
[1762517475074,3.59486496,3262.5,3262.4,9.61520759]
[1762517475371,3.59366496,3262.5,3262.4,9.61620759]
[1762517476373,3.59366496,3262.5,3262.4,10.84620759]
[1762517477265,6.65879905,3262.5,3262.4,10.84620759]
[1762517477856,7.03215408,3262.5,3262.4,12.07620759]
[1762517478556,10.80487639,3262.5,3262.4,12.07620759]
[1762517478752,11.23968536,3262.5,3262.4,12.07620759]
[1762517479189,11.23968536,3262.5,3262.4,13.30620759]
[1762517479999,10.80487639,3262.5,3262.4,13.30620759]
[1762517480524,11.23968536,3262.5,3262.4,13.30620759]
[1762517480687,11.23968536,3262.5,3262.4,14.53620759]
[1762517481312,11.23968536,3262.5,3262.4,7.82551036]
[1762517481516,11.23968536,3262.5,3262.4,4.75300504]
[1762517481690,10.80487639,3262.5,3262.4,4.75300504]
[1762517481896,10.32373142,3262.5,3262.4,4.75300504]
[1762517482085,5.91403831,3262.5,3262.4,5.98300504]
[1762517482284,5.06593134,3262.5,3262.4,5.98300504]
[1762517482485,5.53323134,3262.5,3262.4,5.98300504]
[1762517482716,6.79294334,3262.5,3262.4,5.98300504]
[1762517482906,9.85807743,3262.5,3262.4,5.98300504]
[1762517483109,6.38133831,3262.5,3262.4,5.98300504]
[1762517483309,6.89134333,3262.5,3262.4,5.98300504]
[1762517483488,7.19844734,3262.5,3262.4,7.21300504]
[1762517483826,6.79294334,3262.5,3262.4,7.21300504]
[1762517483999,2.141316,3262.5,3262.4,7.21300504]
[1762517484201,1.76361599,3262.5,3262.4,7.21300504]
[1762517484398,2.14640864,3262.5,3262.4,7.21300504]
[1762517484596,2.55191264,3262.5,3262.4,7.21300504]
[1762517484812,2.14640864,3262.5,3262.4,8.44300504]
[1762517485121,2.55191264,3262.5,3262.4,8.44300504]
[1762517485325,2.65031263,3262.5,3262.4,8.44300504]
[1762517486326,2.65031263,3262.5,3262.4,9.67300504]
[1762517486486,2.16911999,3262.5,3262.4,9.67300504]
[1762517486683,2.07072,3262.5,3262.4,9.67300504]
[1762517486917,2.16911999,3262.5,3262.4,9.67300504]
[1762517487125,3.11581999,3262.5,3262.4,9.67300504]
[1762517487327,6.18095408,3262.5,3262.4,9.67300504]
[1762517487620,6.18705511,3262.5,3262.4,9.67300504]
[1762517488201,6.55912298,3262.5,3262.4,9.67300504]
[1762517488593,6.18705511,3262.5,3262.4,9.67300504]
[1762517489491,2.71031599,3262.5,3262.4,9.67300504]
[1762517490004,6.18705511,3262.5,3262.4,9.67300504]
[1762517492513,6.34741651,3262.5,3262.4,9.67300504]
[1762517493106,4.828938,3262.3,3262.0,0.001]
[1762517493306,5.71054303,3262.3,3262.0,0.001]
[1762517493600,5.766238,3262.3,3262.0,0.001]
[1762517493824,6.17784303,3262.3,3262.0,0.001]
[1762517494952,6.17704303,3262.3,3262.0,0.001]
[1762517495413,9.94976534,3262.3,3262.0,0.001]
[1762517495611,9.94976534,3262.3,3262.2,6.41730328]
[1762517496014,9.94976534,3262.3,3262.2,6.39530328]
[1762517496216,9.53816031,3262.3,3262.2,6.39530328]
[1762517496452,9.98359868,3262.3,3262.2,6.39530328]
[1762517497348,11.50676781,3262.3,3262.2,6.39530328]
[1762517497519,11.50676781,3262.3,3262.2,6.11714128]
[1762517497714,11.50676781,3262.3,3262.2,0.35000328]
[1762517498255,12.90432944,3262.3,3262.2,5e-08]
[1762517498479,4.82912593,3262.1,3262.0,0.001]
[1762517498753,7.27301641,3262.1,3262.0,0.001]
[1762517498940,4.12909589,3261.8,3261.7,7.87881332]
[1762517499139,4.73119588,3261.6,3261.2,2.46]
[1762517499451,5.346473,3259.0,3258.9,0.1307]
[1762517499628,0.09839999,3260.0,3258.9,0.1307]
[1762517499954,0.48141846,3259.0,3258.9,0.1307]
[1762517500144,0.09839999,3260.0,3258.9,0.1307]
[1762517501752,3.67025136,3260.9,3258.9,0.1307]
[1762517501753,0.09839999,3259.3,3258.9,0.1307]
[1762517502072,0.405504,3259.2,3258.9,0.1307]
[1762517502287,0.09839999,3259.3,3258.9,0.1307]
[1762517502488,1.259712,3260.4,3258.9,0.1307]
[1762517502489,0.09839999,3259.8,3258.9,0.1307]
[1762517503254,0.09839999,3260.0,3258.9,0.1307]
[1762517503457,0.48147593,3259.9,3258.9,0.1307]
[1762517505606,0.48147593,3259.9,3258.9,0.46697]
[1762517506771,0.48147593,3259.9,3258.9,0.1307]
[1762517507355,0.09839999,3259.1,3258.9,0.1307]
[1762517507557,0.09839999,3259.7,3258.9,0.1307]
[1762517507754,0.48147593,3259.9,3258.9,0.1307]
[1762517508088,0.09839999,3259.7,3258.9,0.1307]
[1762517508288,0.57987592,3259.9,3258.9,0.1307]
[1762517508488,0.48147593,3259.9,3258.9,0.1307]
[1762517509804,0.57987592,3259.9,3258.9,0.1307]
[1762517510113,0.09839999,3259.6,3258.9,0.1307]
[1762517510715,0.09839999,3259.6,3258.0,1.82679063]
[1762517510716,0.09839999,3259.3,3258.0,1.82679063]
[1762517510878,0.09839999,3259.0,3258.1,0.18267906]
[1762517511593,0.09839999,3258.2,3258.0,1.82679063]
[1762517511797,0.09839999,3258.3,3258.0,1.82679063]
[1762517512201,0.09839999,3258.1,3258.0,1.82679063]
[1762517512785,3.0682995,3259.2,3258.0,1.82679063]
[1762517512786,0.09839999,3258.6,3258.0,1.82679063]
[1762517513309,0.1967,3259.1,3258.0,1.82679063]
[1762517513310,0.09839999,3258.3,3258.0,1.82679063]
[1762517513530,0.09839999,3258.3,3258.0,2.00946969]
[1762517514008,0.15490795,3259.2,3258.0,2.00946969]
[1762517514009,0.1967,3259.4,3258.0,2.00946969]
[1762517514211,0.09839999,3259.1,3258.0,2.00946969]
[1762517514425,0.1967,3259.8,3258.0,5.24146969]
[1762517514626,0.1967,3259.8,3258.1,0.405504]
[1762517514811,0.09839999,3259.7,3258.2,0.56469737]
[1762517515123,0.09839999,3259.6,3258.2,0.56469737]
[1762517515325,0.1967,3259.8,3258.2,0.56469737]
[1762517515326,0.09839999,3259.4,3258.2,0.56469737]
[1762517516377,0.09839999,3259.2,3258.0,2.00946969]
[1762517516573,0.57995394,3259.2,3258.0,2.00946969]
[1762517516912,0.1967,3259.8,3258.1,3.637504]
[1762517517087,0.09839999,3259.7,3258.1,3.637504]
[1762517517327,0.09839999,3259.6,3258.1,3.637504]
[1762517517528,0.09839999,3259.2,3258.2,0.56469737]
[1762517518051,0.09759999,3259.2,3258.0,2.00946969]
[1762517518620,0.09759999,3259.6,3258.0,5.24146969]
[1762517518853,0.09759999,3259.6,3258.1,3.637504]
[1762517519062,0.09759999,3259.4,3258.1,3.637504]
[1762517519753,0.09759999,3259.6,3258.1,3.637504]
[1762517520054,0.09759999,3259.7,3258.2,3.79669737]
[1762517520260,0.09759999,3259.7,3258.2,0.56469737]
[1762517520757,0.09759999,3259.6,3258.1,0.405504]
[1762517520955,0.4815331,3260.4,3258.1,0.405504]
[1762517521137,0.09759999,3259.6,3258.1,0.405504]
[1762517521456,0.09759999,3259.4,3258.1,0.405504]
[1762517521636,0.09759999,3259.8,3258.1,3.47475061]
[1762517521953,0.09759999,3259.8,3258.3,0.405504]
[1762517522118,0.4599,3260.3,3258.3,0.405504]
[1762517522322,0.09759999,3260.0,3258.3,3.637504]
[1762517522559,0.09759999,3259.8,3258.3,3.637504]
[1762517522744,0.09759999,3260.0,3258.3,3.637504]
[1762517522942,0.09759999,3259.8,3258.5,0.405504]
[1762517523536,0.09759999,3260.0,3258.5,0.405504]
[1762517523936,0.09759999,3259.7,3258.5,0.405504]
[1762517524261,0.09759999,3259.9,3258.5,0.405504]
[1762517524435,0.09759999,3259.7,3258.4,0.4185926]
[1762517524629,0.09759999,3259.7,3258.5,0.77056326]
[1762517525378,0.09759999,3260.0,3258.5,0.77056326]
[1762517525681,0.92697147,3260.4,3258.5,0.77056326]
[1762517525682,0.57913309,3260.4,3258.6,0.405504]
[1762517525846,0.57913309,3260.4,3258.5,0.36505926]
[1762517525847,0.09759999,3260.0,3258.5,0.36505926]
[1762517526041,0.09759999,3260.0,3258.6,0.405504]
[1762517527145,0.09759999,3260.2,3258.6,0.405504]
[1762517527445,0.002,3259.9,3258.6,0.405504]
[1762517527645,0.002,3259.9,3258.5,0.001]
[1762517527892,0.002,3259.9,3258.5,0.406504]
[1762517528098,0.002,3259.9,3258.7,0.405504]
[1762517528444,0.002,3259.9,3258.6,0.405504]
[1762517529081,0.002,3259.9,3258.5,0.001]
[1762517529285,0.002,3259.9,3258.6,0.405504]
[1762517529472,0.002,3259.9,3258.5,0.001]
[1762517530699,0.48146482,3259.6,3258.5,0.001]
[1762517531045,1.00293836,3259.5,3258.5,0.001]
[1762517531502,0.4599,3259.4,3258.5,0.001]
[1762517533087,0.09759999,3259.3,3258.5,0.001]
[1762517533258,0.09759999,3259.1,3258.5,0.001]
[1762517533652,0.4599,3259.0,3258.5,0.001]
[1762517535263,0.09759999,3259.1,3258.5,0.001]
[1762517535594,0.09759999,3259.4,3258.5,0.001]
[1762517536130,0.09759999,3259.2,3258.5,0.001]
[1762517536249,0.09759999,3259.0,3258.5,0.001]
[1762517536684,0.4591,3258.9,3258.5,0.001]
[1762517537584,0.09759999,3258.8,3258.5,0.001]
[1762517538089,0.55669999,3258.8,3258.5,0.001]
[1762517538385,0.09759999,3258.8,3258.5,0.001]
[1762517538572,0.09759999,3259.0,3258.5,0.001]
[1762517539288,0.58519999,3258.6,3258.5,0.001]
[1762517539773,1.04429999,3258.6,3258.5,0.001]
[1762517540587,1.04349999,3258.6,3258.5,0.001]
[1762517544180,1.48893836,3258.6,3258.5,0.001]
[1762517544402,2.74865036,3258.6,3258.5,0.001]
[1762517544782,6.26131694,3258.6,3258.5,0.001]
[1762517544995,6.65776588,3258.6,3258.5,0.001]
[1762517545418,3.18345933,3258.6,3258.5,0.001]
[1762517545717,2.30321199,3258.6,3258.5,0.001]
[1762517545913,2.30521199,3258.6,3258.5,0.001]
[1762517546101,1.748512,3258.6,3258.5,0.001]
[1762517546308,2.30521199,3258.6,3258.5,0.001]
[1762517546610,2.30521199,3258.6,3258.0,1.82679063]
[1762517546611,0.09759999,3258.2,3258.0,1.82679063]
[1762517546777,1.04429999,3258.2,3258.0,1.82679063]
[1762517547586,0.58519999,3258.2,3258.0,1.82679063]
[1762517547787,0.4876,3258.2,3258.0,1.82679063]
[1762517547992,0.58519999,3258.2,3258.0,1.82679063]
[1762517548400,1.04429999,3258.2,3258.0,1.82679063]
[1762517551695,6.10233684,3258.1,3258.0,0.33659063]
[1762517551896,6.10233684,3258.1,3258.0,0.33459063]
[1762517552124,6.45682138,3258.1,3258.0,0.33459063]
[1762517552335,3.57294282,3257.5,3257.4,2.46]
[1762517552644,6.19560216,3257.5,3257.4,2.46]
[1762517552938,6.26140216,3257.5,3257.4,2.46]
[1762517553615,6.30851012,3257.5,3257.4,2.46]